bitfinex-derivatives/quotes_SOLF0:USTF0_20240924
["timestamp","ask_amount","ask_price","bid_price","bid_amount"]
[1727169974267,3.394,147.33,147.29,3.3946]
[1727169974568,3.394,147.33,147.3,9.39]
[1727169974869,3.3941,147.32,147.3,9.39]
[1727169979475,3.3944,147.31,147.28,3.395]
[1727169979671,3.3944,147.31,147.29,9.39]
[1727169980266,3.3942,147.32,147.29,9.39]
[1727169980668,3.3942,147.32,147.3,9.39]
[1727169983684,14.97426918,147.36,147.3,9.39]
[1727169983872,24.36426918,147.35,147.3,9.39]
[1727169984177,3.3941,147.33,147.3,9.39]
[1727169985473,3.3942,147.32,147.3,9.39]
[1727169988770,18.38590571,147.32,147.3,9.39]
[1727169988983,3.3942,147.32,147.3,9.39]
[1727169989473,39.62161491,147.35,147.31,9.39]
[1727169989685,15.0047914,147.34,147.33,9.39]
[1727169990677,10.7392,147.37,147.33,9.39]
[1727169990877,3.3934,147.35,147.33,9.39]
[1727169991481,3.3934,147.35,147.32,12.784]
[1727169991679,3.3934,147.35,147.32,9.39]
[1727169993083,9.39,147.35,147.3,10.7462]
[1727169993875,3.394,147.33,147.3,14.1406]
[1727169994083,3.394,147.33,147.31,9.39]
[1727169994477,3.3937,147.34,147.31,12.7842]
[1727169994778,3.3937,147.34,147.32,9.39]
[1727169994981,9.39,147.33,147.25,1.4379]
[1727169995175,9.39,147.3,147.25,10.8279]
[1727169995382,9.39,147.3,147.26,9.39]
[1727169995681,3.3945,147.31,147.26,12.7853]
[1727169995980,9.39,147.32,147.26,12.7853]
[1727169996874,3.3946,147.3,147.26,12.7853]
[1727169998188,2.6916,147.35,147.23,1.3001]
[1727169998376,9.39,147.27,147.22,9.39]
[1727169998583,9.39,147.26,147.17,1.3442]
[1727169998784,9.39,147.26,147.21,9.39]
[1727169999283,3.41813858,147.28,147.2,9.39]
[1727169999490,9.39,147.26,147.21,9.39]
[1727169999882,3.396,147.24,147.21,9.39]
[1727170001290,3.3957,147.25,147.23,9.39]
[1727170003289,9.39,147.28,147.23,9.39]
[1727170003789,3.3957,147.26,147.23,9.39]
[1727170005793,1.4359,147.31,147.25,9.39]
[1727170005995,10.8259,147.31,147.27,9.39]
[1727170006582,9.39,147.32,147.28,9.39]
[1727170007191,3.3945,147.31,147.28,9.39]
[1727170007788,3.3942,147.32,147.29,9.39]
[1727170007993,9.39,147.33,147.29,9.39]
[1727170008194,24.35731345,147.33,147.29,9.39]
[1727170008388,3.3945,147.31,147.29,9.39]
[1727170009202,3.3941,147.32,147.29,9.39]
[1727170009401,24.35960923,147.34,147.3,9.39]
[1727170009595,9.39,147.34,147.3,9.39]
[1727170009898,3.394,147.33,147.3,9.39]
[1727170010502,3.3941,147.32,147.3,9.39]
[1727170014096,3.394,147.33,147.3,9.39]
[1727170014602,9.39,147.34,147.3,9.39]
[1727170015503,9.39,147.32,147.24,1.3121]
[1727170015691,3.3947,147.3,147.27,9.39]
[1727170019198,9.39,147.32,147.27,9.39]
[1727170019199,3.3949,147.29,147.27,9.39]
[1727170019604,9.39,147.29,147.24,1.3121]
[1727170019807,9.39,147.29,147.24,10.7021]
[1727170021009,3.3954,147.27,147.24,14.098]
[1727170021208,3.3954,147.27,147.25,9.39]
[1727170024112,9.5555,147.36,147.26,9.39]
[1727170024419,9.39,147.32,147.28,9.39]
[1727170025001,3.3944,147.31,147.28,9.39]
[1727170025506,3.3942,147.32,147.28,3.3949]
[1727170025707,9.39,147.33,147.29,9.39]
[1727170026106,3.3943,147.31,147.29,9.39]
[1727170028109,9.39,147.31,147.24,1.3121]
[1727170028307,9.39,147.31,147.26,9.39]
[1727170029018,3.3951,147.28,147.26,9.39]
[1727170030614,81.5,147.43,147.27,9.39]
[1727170030819,81.5,147.43,147.24,1.3121]
[1727170030820,9.39,147.36,147.3,9.39]
[1727170031215,3.3939,147.34,147.3,9.39]
[1727170031417,9.39,147.34,147.3,9.39]
[1727170031924,3.3942,147.32,147.3,9.39]
[1727170032224,3.3942,147.32,147.29,9.39]
[1727170032925,9.39,147.32,147.24,1.3121]
[1727170033118,9.39,147.31,147.26,9.39]
[1727170034123,3.395,147.28,147.26,9.39]
[1727170034826,9.39,147.31,147.25,3.3955]
[1727170034827,3.3948,147.29,147.27,9.39]
[1727170040425,3.3945,147.31,147.28,9.39]
[1727170040829,9.39,147.32,147.28,9.39]
[1727170041036,24.37781059,147.32,147.28,9.39]
[1727170041233,9.39,147.32,147.28,9.39]
[1727170041932,3.3946,147.3,147.28,9.39]
[1727170044232,3.3946,147.3,147.27,9.39]
[1727170044724,3.3948,147.29,147.27,9.39]
[1727170052237,3.3948,147.29,147.26,3.3954]
[1727170052534,3.3948,147.29,147.27,9.39]
[1727170056240,24.37768443,147.31,147.27,9.39]
[1727170056445,9.39,147.31,147.27,9.39]
[1727170057136,12.7845,147.31,147.27,9.39]
[1727170057836,3.3946,147.3,147.27,9.39]
[1727170059647,3.3948,147.29,147.25,12.7856]
[1727170059840,3.3948,147.29,147.25,9.39]
[1727170060646,12.7847,147.3,147.26,3.3955]
[1727170060848,12.7847,147.3,147.26,12.7855]
[1727170062751,27.77302529,147.31,147.27,12.7852]
[1727170063450,3.3946,147.3,147.27,9.39]
[1727170064246,3.3946,147.3,147.26,12.7854]
[1727170072151,18.38292529,147.31,147.27,12.7852]
[1727170072356,14.98852529,147.3,147.27,12.7852]
[1727170072542,12.7844,147.31,147.27,12.7852]
[1727170072947,3.3946,147.3,147.27,12.7852]
[1727170073657,3.3946,147.3,147.26,12.7854]
[1727170074455,9.39,147.29,147.24,10.7021]
[1727170074651,9.39,147.29,147.24,9.39]
[1727170074854,9.39,147.27,147.19,1.3805]
[1727170075056,9.39,147.27,147.22,9.39]
[1727170075252,9.39,147.27,147.19,2.75]
[1727170075458,3.3956,147.26,147.22,9.39]
[1727170075757,9.39,147.27,147.22,9.39]
[1727170076151,3.3955,147.26,147.23,3.396]
[1727170077754,3.3958,147.25,147.22,12.7864]
[1727170079958,15.01381101,147.26,147.23,9.39]
[1727170080159,1.3092,147.29,147.19,2.75]
[1727170080160,10.6992,147.29,147.19,2.75]
[1727170080365,3.3952,147.28,147.24,12.7858]
[1727170080663,12.7852,147.28,147.24,12.7858]
[1727170081466,27.79686063,147.28,147.24,12.7858]
[1727170081964,15.01166063,147.27,147.24,12.7858]
[1727170082359,3.3953,147.27,147.24,12.7858]
[1727170082559,18.40696063,147.27,147.24,9.39]
[1727170082758,15.01166063,147.26,147.24,9.39]
[1727170082954,3.3953,147.27,147.24,9.39]
[1727170083154,3.3953,147.27,147.19,2.75]
[1727170083360,3.3953,147.27,147.23,9.39]
[1727170083560,15.01426352,147.27,147.24,9.39]
[1727170083761,15.01426352,147.26,147.24,12.7857]
[1727170083957,3.3952,147.28,147.24,12.7857]
[1727170084367,18.41362871,147.28,147.24,12.7857]
[1727170084562,15.01842871,147.27,147.24,12.7857]
[1727170084868,15.01842871,147.26,147.24,12.7857]
[1727170085069,3.3952,147.28,147.24,12.7857]
[1727170085269,18.40707507,147.28,147.24,12.7857]
[1727170085468,15.01187507,147.27,147.24,12.7857]
[1727170085669,12.7854,147.27,147.24,3.3957]
[1727170085871,12.7854,147.27,147.23,12.7861]
[1727170088263,12.7854,147.27,147.24,3.3959]
[1727170088570,3.3955,147.26,147.23,9.39]
[1727170089272,3.3955,147.26,147.23,12.786]
[1727170089473,3.3955,147.26,147.19,2.75]
[1727170089474,3.3957,147.25,147.19,2.75]
[1727170089768,12.7857,147.25,147.2,9.39]
[1727170089975,3.3957,147.25,147.22,3.3963]
[1727170090168,12.7856,147.26,147.21,9.39]
[1727170090363,3.33581873,147.28,147.24,9.39]
[1727170090567,9.39,147.28,147.24,9.39]
[1727170090969,3.3954,147.27,147.24,9.39]
[1727170091262,12.7854,147.27,147.23,9.39]
[1727170092771,27.77425533,147.28,147.23,9.39]
[1727170092965,27.77425533,147.28,147.24,9.39]
[1727170093174,18.38425533,147.28,147.24,12.7857]
[1727170093470,3.3952,147.28,147.24,12.7857]
[1727170094070,12.7849,147.29,147.24,12.7857]
[1727170094473,27.76557073,147.29,147.24,12.7857]
[1727170094676,14.98067073,147.28,147.24,12.7857]
[1727170094974,14.98067073,147.27,147.24,12.7857]
[1727170095175,3.395,147.28,147.24,12.7857]
[1727170095373,9.39,147.29,147.24,9.39]
[1727170095770,3.3953,147.27,147.24,9.39]
[1727170097579,14.97822125,147.29,147.26,9.39]
[1727170097779,14.0897548,147.32,147.27,9.39]
[1727170097976,28.07782766,147.31,147.27,9.39]
[1727170098276,3.3947,147.3,147.27,9.39]
[1727170100575,14.98550422,147.31,147.28,9.39]
[1727170100880,9.39,147.36,147.3,9.39]
[1727170101070,20.88896509,147.36,147.3,9.39]
[1727170101291,11.49896509,147.35,147.3,9.39]
[1727170101469,20.88896509,147.36,147.3,9.39]
[1727170101674,3.3935,147.35,147.3,9.39]
[1727170101874,18.38658824,147.35,147.3,9.39]
[1727170102476,3.3937,147.34,147.3,12.7845]
[1727170102682,9.39,147.36,147.3,12.7845]
[1727170102683,14.99308824,147.36,147.3,12.7845]
[1727170102881,14.99308824,147.34,147.32,9.39]
[1727170103079,16.37308824,147.37,147.33,9.39]
[1727170103381,14.98952871,147.36,147.33,9.39]
[1727170103680,14.98952871,147.35,147.33,9.39]
[1727170103879,16.36952871,147.37,147.33,9.39]
[1727170104174,14.98943499,147.36,147.33,9.39]
[1727170104379,69.76242455,147.38,147.33,9.39]
[1727170104581,14.98467364,147.37,147.33,9.39]
[1727170104879,3.3932,147.36,147.33,9.39]
[1727170105485,3.3934,147.35,147.33,9.39]
[1727170108683,14.98467364,147.37,147.34,9.39]
[1727170109184,18.37777364,147.37,147.34,9.39]
[1727170110987,18.37777364,147.37,147.34,12.7836]
[1727170111287,3.3931,147.37,147.34,9.39]
[1727170111885,9.39,147.39,147.34,9.39]
[1727170112087,37.42208658,147.39,147.34,9.39]
[1727170112384,3.3931,147.37,147.34,9.39]
[1727170113279,3.3931,147.37,147.33,3.3937]
[1727170113478,3.3931,147.37,147.34,9.39]
[1727170113882,9.39,147.36,147.32,12.784]
[1727170114083,24.35143173,147.36,147.32,12.784]
[1727170114287,9.39,147.36,147.32,12.784]
[1727170114886,3.3935,147.35,147.32,9.39]
[1727170115680,9.39,147.36,147.32,9.39]
[1727170116485,24.33439473,147.36,147.32,9.39]
[1727170116683,3.3938,147.34,147.32,9.39]
[1727170118588,3.3939,147.33,147.3,6.1291]
[1727170118883,3.3939,147.33,147.32,9.39]
[1727170119885,3.3937,147.34,147.32,9.39]
[1727170120284,3.3937,147.34,147.33,9.39]
[1727170124289,9.39,147.35,147.25,0.917]
[1727170124479,9.39,147.35,147.3,9.39]
[1727170124993,3.3943,147.32,147.3,9.39]
[1727170128185,9.39,147.35,147.31,9.39]
[1727170129904,3.3941,147.32,147.31,9.39]
[1727170135296,9.39,147.32,147.26,1.3564]
[1727170135494,9.39,147.32,147.28,9.39]
[1727170136603,3.3947,147.3,147.28,9.39]
[1727170140511,14.9143579,147.35,147.29,9.39]
[1727170140709,9.39,147.35,147.31,9.39]
[1727170142909,3.3941,147.32,147.31,9.39]
[1727170143610,3.3937,147.34,147.31,9.39]
[1727170143811,3.3937,147.34,147.33,9.39]
[1727170144209,3.3935,147.35,147.33,9.39]
[1727170144504,3.3935,147.35,147.34,9.39]
[1727170147910,9.39,147.36,147.26,2.2728]
[1727170148111,9.39,147.36,147.31,9.39]
[1727170148412,3.3937,147.34,147.31,9.39]
[1727170151420,9.39,147.36,147.31,9.39]
[1727170152313,3.3938,147.34,147.31,9.39]
[1727170158125,3.3938,147.34,147.31,12.7843]
[1727170159018,3.3938,147.34,147.32,9.39]
[1727170159426,3.3938,147.34,147.31,3.3943]
[1727170159625,14.91329714,147.36,147.27,3.39445785]
[1727170159626,3.394,147.33,147.27,3.39445785]
[1727170159923,3.394,147.33,147.31,9.39]
[1727170161023,3.3941,147.32,147.3,9.39]
[1727170164327,3.3939,147.33,147.31,9.39]
[1727170164524,3.3939,147.33,147.32,9.39]
[1727170168134,3.3937,147.34,147.32,9.39]
[1727170168632,11.47592335,147.35,147.31,9.39]
[1727170168827,3.394,147.33,147.31,9.39]
[1727170169331,3.394,147.33,147.3,3.3945]
[1727170169332,3.3942,147.32,147.3,9.39]
[1727170169930,3.3948,147.29,147.25,1.362]
[1727170170236,3.3948,147.29,147.26,9.39]
[1727170170737,3.395,147.28,147.26,9.39]
[1727170171329,9.39,147.3,147.21,1.3416]
[1727170171536,9.39,147.3,147.25,9.39]
[1727170171830,37.42295517,147.3,147.25,9.39]
[1727170172034,3.3954,147.27,147.25,9.39]
[1727170172729,3.3954,147.27,147.26,9.39]
[1727170175430,3.395,147.29,147.26,9.39]
[1727170175624,3.395,147.29,147.28,9.39]
[1727170182942,9.39,147.32,147.27,9.39]
[1727170183744,3.3949,147.29,147.27,9.39]
[1727170185738,3.395,147.28,147.26,9.39]
[1727170186038,3.395,147.28,147.24,3.3958]
[1727170186039,3.395,147.28,147.25,9.39]
[1727170186840,9.39,147.3,147.24,12.7858]
[1727170187041,24.33204186,147.3,147.24,12.7858]
[1727170187243,9.39,147.3,147.24,12.7858]
[1727170187741,9.39,147.3,147.24,3.3958]
[1727170187941,9.39,147.3,147.24,12.7858]
[1727170188350,3.3954,147.27,147.24,12.7858]
[1727170190142,3.3955,147.26,147.24,12.7858]
[1727170193050,9.39,147.29,147.22,3.3963]
[1727170193051,9.39,147.28,147.22,3.3963]
[1727170193346,17.64337408,147.3,147.24,9.39]
[1727170193546,9.39,147.29,147.24,9.39]
[1727170194943,3.3955,147.26,147.24,12.7859]
[1727170200458,1.3365,147.3,147.25,3.3956]
[1727170200666,10.6941,147.31,147.27,9.39]
[1727170201168,1.3041,147.31,147.27,9.39]
[1727170201468,10.6941,147.31,147.25,9.39]
[1727170201664,3.3952,147.28,147.25,9.39]
[1727170202755,9.39,147.27,147.23,3.396]
[1727170203061,9.39,147.27,147.18,7.09465923]
[1727170203258,9.39,147.27,147.21,9.39]
[1727170203561,3.3958,147.25,147.22,3.3963]
[1727170203957,3.396,147.24,147.22,3.3963]
[1727170204958,3.396,147.24,147.21,12.7865]
[1727170205759,3.396,147.24,147.21,3.3965]
[1727170205953,3.396,147.24,147.22,9.39]
[1727170207063,9.39,147.26,147.18,2.7602]
[1727170207269,9.39,147.26,147.2,9.39]
[1727170207459,9.39,147.26,147.18,2.7602]
[1727170207659,2.7821,147.3,147.2,9.39]
[1727170207855,2.7821,147.3,147.22,9.39]
[1727170207856,9.39,147.27,147.22,9.39]
[1727170208264,3.3955,147.26,147.23,9.39]
[1727170209061,3.3958,147.25,147.23,9.39]
[1727170209669,3.3959,147.24,147.18,3.6781]
[1727170209968,3.3959,147.24,147.21,9.39]
[1727170210165,9.39,147.27,147.21,9.39]
[1727170210964,9.39,147.27,147.21,12.7866]
[1727170211669,3.3959,147.25,147.22,9.39]
[1727170212167,3.3951,147.28,147.24,9.39]
[1727170212470,9.39,147.29,147.24,9.39]
[1727170213969,9.39,147.28,147.24,9.39]
[1727170214563,3.3953,147.27,147.24,9.39]
[1727170215266,3.3955,147.26,147.24,9.39]
[1727170215466,3.3955,147.26,147.23,12.7861]
[1727170218573,3.3953,147.27,147.25,9.39]
[1727170220471,3.3951,147.28,147.25,9.39]
[1727170220771,1.3278,147.36,147.27,9.39]
[1727170220990,1.3278,147.36,147.18,3.6781]
[1727170220991,4.1197,147.36,147.31,9.39]
[1727170221191,12.1819,147.36,147.31,9.39]
[1727170221474,3.3938,147.34,147.31,9.39]
[1727170231178,1.3238,147.4,147.33,9.39]
[1727170231385,39.32683969,147.41,147.36,9.39]
[1727170231584,3.3925,147.39,147.36,9.39]
[1727170231882,9.39,147.4,147.36,9.39]
[1727170232078,3.3929,147.38,147.36,9.39]
[1727170233182,14.94658424,147.41,147.37,9.39]
[1727170233485,10.7282,147.43,147.38,9.39]
[1727170233690,1.3382,147.43,147.38,9.39]
[1727170234182,3.3921,147.41,147.38,9.39]
[1727170235588,9.39,147.44,147.4,9.39]
[1727170235784,12.80522256,147.45,147.4,9.39]
[1727170235986,1.4031,147.47,147.41,9.39]
[1727170236195,9.39,147.46,147.41,9.39]
[1727170236688,1.4031,147.47,147.41,12.7819]
[1727170236883,10.7931,147.47,147.41,12.7819]
[1727170237284,3.3909,147.46,147.43,9.39]
[1727170238285,10.7931,147.47,147.43,9.39]
[1727170238286,3.3913,147.45,147.43,9.39]
[1727170238486,9.39,147.46,147.4,3.3922]
[1727170238786,9.39,147.46,147.41,9.39]
[1727170239190,3.3916,147.43,147.39,3.3924]
[1727170239389,3.3916,147.43,147.39,12.7824]
[1727170239783,3.3918,147.42,147.38,3.3927]
[1727170239986,3.3918,147.42,147.38,12.7827]
[1727170240289,3.3918,147.42,147.39,3.3925]
[1727170240485,9.39,147.43,147.35,2.8144]
[1727170240486,3.3925,147.39,147.35,2.8144]
[1727170240695,9.39,147.41,147.35,2.8144]
[1727170240897,9.39,147.4,147.36,9.39]
[1727170241586,9.39,147.39,147.35,9.39]
[1727170242290,3.3931,147.37,147.35,9.39]
[1727170245595,3.3931,147.37,147.34,95.50383126]
[1727170249596,9.39,147.38,147.32,9.39]
[1727170249989,3.3934,147.35,147.32,12.784]
[1727170250895,4.2202,147.41,147.34,9.39]
[1727170251096,9.39,147.39,147.34,9.39]
[1727170251286,4.2202,147.41,147.34,9.39]
[1727170251492,9.39,147.38,147.34,9.39]
[1727170251693,3.3933,147.36,147.34,9.39]
[1727170252089,9.39,147.39,147.34,9.39]
[1727170252298,9.39,147.39,147.34,12.7836]
[1727170252299,3.3932,147.37,147.34,12.7836]
[1727170252895,9.39,147.39,147.34,12.7836]
[1727170253893,3.3931,147.37,147.34,12.7836]
[1727170257895,3.3932,147.36,147.34,9.39]
[1727170259600,3.3932,147.36,147.34,12.7836]
[1727170260516,4.2202,147.41,147.35,3.3934]
[1727170260695,12.2414,147.41,147.36,9.39]
[1727170260900,10.8222,147.41,147.37,9.39]
[1727170261901,3.3926,147.39,147.37,9.39]
[1727170265901,2.7507,147.45,147.38,9.39]
[1727170266097,10.7441,147.45,147.41,9.39]
[1727170266299,9.39,147.45,147.41,9.39]
[1727170266602,9.39,147.47,147.42,9.39]
[1727170267001,3.3916,147.43,147.42,9.39]
[1727170268298,9.39,147.43,147.38,9.39]
[1727170268597,9.39,147.41,147.37,9.39]
[1727170268796,3.3924,147.4,147.37,9.39]
[1727170268998,9.39,147.4,147.36,9.39]
[1727170269198,9.39,147.4,147.35,10.7832]
[1727170269403,3.3925,147.39,147.36,9.39]
[1727170270903,3.3925,147.39,147.36,12.7832]
[1727170273009,3.3925,147.39,147.36,9.39]
[1727170273507,3.3925,147.39,147.35,4.7865]
[1727170273707,9.39,147.39,147.34,1.3044]
[1727170273904,3.46775288,147.42,147.35,9.39]
[1727170274100,9.39,147.4,147.36,9.39]
[1727170274801,3.3927,147.39,147.36,12.7831]
[1727170275197,3.3927,147.39,147.36,9.39]
[1727170275604,3.3927,147.38,147.36,9.39]
[1727170276012,3.3927,147.38,147.34,1.3044]
[1727170276207,3.3927,147.38,147.35,9.39]
[1727170277008,3.3925,147.39,147.36,9.39]
[1727170278509,3.3925,147.39,147.37,9.39]
[1727170279008,39.09471601,147.46,147.38,9.39]
[1727170279212,9.39,147.44,147.4,9.39]
[1727170279412,24.24891825,147.44,147.39,9.39]
[1727170279611,3.3922,147.41,147.39,9.39]
[1727170283921,3.3919,147.42,147.4,9.39]
[1727170284121,9.39,147.45,147.41,9.39]
[1727170284325,9.39,147.46,147.41,9.39]
[1727170284829,3.3917,147.43,147.41,9.39]
[1727170285827,3.3914,147.44,147.41,12.782]
[1727170286030,3.3914,147.44,147.41,9.39]
[1727170286531,9.39,147.46,147.41,9.39]
[1727170287924,3.3916,147.43,147.41,9.39]
[1727170288729,3.3914,147.44,147.41,9.39]
[1727170288932,14.89961641,147.46,147.41,9.39]
[1727170289229,14.89961641,147.45,147.41,9.39]
[1727170289429,18.29101641,147.44,147.41,9.39]
[1727170289730,3.3914,147.44,147.41,9.39]
[1727170290233,3.3916,147.43,147.41,9.39]
[1727170297032,18.30841506,147.43,147.41,9.39]
[1727170297235,14.91681506,147.42,147.41,9.39]
[1727170298137,3.3916,147.43,147.41,9.39]
[1727170299235,14.9183646,147.43,147.42,9.39]
[1727170299441,3.3914,147.44,147.41,3.3919]
[1727170299739,3.3914,147.44,147.42,9.39]
[1727170300747,3.3914,147.44,147.34,3.6311]
[1727170300748,9.39,147.44,147.34,3.6311]
[1727170300933,26.35904987,147.45,147.39,9.39]
[1727170301136,9.39,147.44,147.39,9.39]
[1727170301527,3.3919,147.42,147.39,9.39]
[1727170301726,3.3919,147.42,147.4,9.39]
[1727170303438,18.3102646,147.42,147.4,9.39]
[1727170303638,3.3919,147.42,147.4,9.39]
[1727170305133,3.3919,147.42,147.41,9.39]
[1727170305334,3.3917,147.43,147.41,9.39]
[1727170305527,3.3917,147.43,147.42,9.39]
[1727170312635,3.3917,147.43,147.41,9.39]
[1727170314339,18.31310706,147.43,147.41,9.39]
[1727170314540,14.92140706,147.42,147.41,9.39]
[1727170314940,3.3917,147.43,147.41,9.39]
[1727170316340,18.31310706,147.43,147.41,9.39]
[1727170316645,14.92140706,147.42,147.41,9.39]
[1727170316841,3.3917,147.43,147.41,9.39]
[1727170317648,18.31310706,147.43,147.41,9.39]
[1727170317954,14.92140706,147.42,147.41,9.39]
[1727170318248,3.3917,147.43,147.41,9.39]
[1727170318643,3.3914,147.44,147.42,9.39]
[1727170318843,18.31280706,147.44,147.43,9.39]
[1727170319341,3.3914,147.44,147.43,9.39]
[1727170319740,14.92316014,147.46,147.43,9.39]
[1727170319940,1.4076,147.48,147.45,9.39]
[1727170320451,38.62218387,147.48,147.45,9.39]
[1727170320647,14.92660456,147.47,147.43,9.39]
[1727170320877,14.92660456,147.46,147.43,9.39]
[1727170321146,10.7976,147.48,147.43,9.39]
[1727170321356,1.4076,147.48,147.43,9.39]
[1727170321546,10.7976,147.48,147.43,9.39]
[1727170321750,25.72999996,147.48,147.43,9.39]
[1727170322255,3.3913,147.45,147.43,9.39]
[1727170324143,3.3909,147.46,147.44,9.39]
[1727170324346,18.32329996,147.46,147.44,9.39]
[1727170324647,3.3912,147.45,147.34,88.36905045]
[1727170324945,9.39,147.47,147.43,9.39]
[1727170325346,24.32748198,147.47,147.43,9.39]
[1727170325542,3.3915,147.44,147.43,9.39]
[1727170327255,14.93748198,147.47,147.34,88.36905045]
[1727170327454,8.1885,147.48,147.34,81.42]
[1727170327455,9.39,147.39,147.34,81.42]
[1727170327746,3.4224664,147.42,147.32,9.39]
[1727170328045,3.4224664,147.42,147.34,9.39]
[1727170328046,4.79921112,147.42,147.34,9.39]
[1727170328256,9.39,147.38,147.34,9.39]
[1727170328839,3.3931,147.37,147.34,9.39]
[1727170330257,3.3928,147.38,147.35,9.39]
[1727170332750,3.393,147.37,147.35,9.39]
[1727170336659,3.3932,147.36,147.35,9.39]
[1727170339054,14.90939224,147.41,147.31,9.39]
[1727170339055,9.39,147.37,147.31,9.39]
[1727170340657,9.39,147.37,147.31,12.7843]
[1727170341550,3.3938,147.34,147.31,12.7843]
[1727170342261,3.3939,147.33,147.31,12.7843]
[1727170344355,3.3937,147.34,147.31,12.7843]
[1727170345552,3.3937,147.34,147.33,9.39]
[1727170345755,3.3936,147.35,147.33,9.39]
[1727170346765,3.3936,147.35,147.33,12.7839]
[1727170348557,3.3936,147.35,147.33,9.39]
[1727170349457,3.3936,147.35,147.32,3.394]
[1727170349663,3.3936,147.35,147.34,9.39]
[1727170349855,9.39,147.36,147.28,93.48560007]
[1727170350055,9.39,147.36,147.3,9.39]
[1727170350257,9.39,147.35,147.3,9.39]
[1727170350461,3.394,147.33,147.3,12.7845]
[1727170351163,3.394,147.33,147.31,9.39]
[1727170352366,3.394,147.33,147.31,12.7843]
[1727170352768,3.394,147.33,147.31,9.39]
[1727170354068,27.1647,147.4,147.28,93.48560007]
[1727170354266,9.39,147.33,147.29,9.39]
[1727170354768,3.3946,147.3,147.29,9.39]
[1727170355272,3.3946,147.3,147.28,92.14690007]
[1727170355461,3.3946,147.3,147.29,9.39]
[1727170358270,1.4032,147.37,147.28,92.14690007]
[1727170358271,3.3948,147.29,147.28,92.14690007]
[1727170359170,3.3946,147.3,147.28,92.14690007]
[1727170364674,9.39,147.32,147.23,2.6001]
[1727170364675,9.39,147.31,147.25,3.3955]
[1727170364872,9.39,147.31,147.26,9.39]
[1727170365174,9.39,147.3,147.26,9.39]
[1727170365479,3.3951,147.28,147.26,9.39]
[1727170366067,3.3951,147.28,147.26,12.7855]
[1727170376594,3.3949,147.29,147.26,12.7855]
[1727170381103,86.11044853,147.4,147.23,2.6001]
[1727170381289,10.7248,147.37,147.32,9.39]
[1727170381595,3.3936,147.35,147.32,9.39]
[1727170381793,10.7248,147.37,147.32,9.39]
[1727170381998,9.39,147.34,147.23,2.6001]
[1727170382296,9.39,147.34,147.29,9.39]
[1727170382491,9.39,147.33,147.23,2.6001]
[1727170382691,9.39,147.31,147.23,1.3051]